bitfinex-derivatives/quotes_BTCF0:USTF0_20210109
["timestamp","ask_amount","ask_price","bid_price","bid_amount"]
[1610211714975,0.13632608,40121.0,40105.0,0.09072]
[1610211715175,0.13632608,40121.0,40106.0,0.0002075]
[1610211715374,0.13632608,40121.0,40106.0,0.1179575]
[1610211715776,0.13632608,40121.0,40107.0,0.0002075]
[1610211716975,0.13632608,40108.0,40107.0,0.0002075]
[1610211718576,0.25455,40135.0,40107.0,0.0002075]
[1610211718985,0.13632608,40118.0,40114.0,0.13632608]
[1610211719376,0.13632608,40118.0,40115.0,0.0002075]
[1610211721780,0.25455,40135.0,40115.0,0.0002075]
[1610211722179,0.00030475,40134.0,40115.0,0.0002075]
[1610211723079,0.13632608,40122.0,40115.0,0.0002075]
[1610211727082,0.13632608,40116.0,40115.0,0.0002075]
[1610211727482,0.13632608,40116.0,40107.0,0.00782568]
[1610211727883,0.13632608,40116.0,40115.0,0.00020748]
[1610211728084,0.13632608,40116.0,40108.0,0.00020748]
[1610211728283,0.13663081,40116.0,40115.0,0.00020748]
[1610211728683,0.13632608,40116.0,40109.0,0.00020748]
[1610211728883,0.13632608,40116.0,40106.0,0.11775]
[1610211728884,0.13632608,40116.0,40107.0,0.00020748]
[1610211729084,0.13632608,40108.0,40106.0,0.11775]
[1610211729285,0.13632608,40108.0,40096.0,4.00496]
[1610211729686,0.13632608,40108.0,40097.0,0.0078265]
[1610211730888,3.419,40098.0,40097.0,0.0002075]
[1610211731089,3.55532608,40098.0,40097.0,0.0002075]
[1610211731289,3.55532608,40098.0,40069.0,2.8097]
[1610211731489,3.55563096,40098.0,40097.0,0.00020759]
[1610211731889,3.55532608,40098.0,40070.0,0.00782969]
[1610211732088,3.55563099,40098.0,40097.0,0.00020761]
[1610211732287,4.55532608,40098.0,40071.0,0.00020763]
[1610211732487,4.55532608,40098.0,40070.0,0.00782971]
[1610211732788,4.55532608,40098.0,40072.0,0.00020766]
[1610211732989,4.55532608,40098.0,40071.0,0.00020766]
[1610211733188,0.13632608,40072.0,40071.0,0.00020766]
[1610211733388,0.22235608,40072.0,40042.0,0.13632608]
[1610211733588,0.22235608,40072.0,40057.0,0.00762461]
[1610211733788,0.22235608,40072.0,40050.0,4.0149]
[1610211734189,0.22235608,40072.0,40058.0,0.00020767]
[1610211734390,0.22235608,40072.0,40051.0,0.00020769]
[1610211734794,0.22235608,40072.0,40046.0,0.10344]
[1610211734795,3.6463,40067.0,40059.0,0.00020769]
[1610211734992,3.6463,40067.0,40052.0,0.00020769]
[1610211735193,3.6463,40067.0,40046.0,0.10344]
[1610211735194,0.13632608,40053.0,40047.0,0.00020771]
[1610211735390,0.13632608,40053.0,40052.0,0.00020771]
[1610211735791,0.13632608,40053.0,40048.0,0.00020773]
[1610211735991,0.13632608,40053.0,40052.0,0.00020773]
[1610211736195,0.13632608,40053.0,40046.0,0.10344]
[1610211736596,0.13632608,40053.0,40052.0,0.00020773]
[1610211736795,0.13632608,40053.0,40046.0,0.10344]
[1610211736796,0.13632608,40053.0,40047.0,0.00020773]
[1610211736995,0.13632608,40053.0,40052.0,0.00020773]
[1610211737296,0.13632608,40053.0,40048.0,0.00020773]
[1610211737494,0.13632608,40053.0,40047.0,0.00020773]
[1610211737696,0.08603,40072.0,40047.0,0.00020773]
[1610211737895,0.07254,40063.0,40049.0,0.00020773]
[1610211738095,0.07254,40063.0,40044.0,3.8585]
[1610211738096,0.07254,40063.0,40045.0,0.00020773]
[1610211738293,0.07254,40063.0,40044.0,3.8585]
[1610211738694,0.07254,40063.0,40046.0,0.00020772]
[1610211738894,2.8724,40081.0,40046.0,0.11373]
[1610211739094,1.0,40092.0,40073.0,0.13632608]
[1610211739494,1.0,40092.0,40066.0,0.1044]
[1610211739696,1.08787,40092.0,40066.0,0.1044]
[1610211739895,2.834,40088.0,40066.0,0.1044]
[1610211740493,2.834,40088.0,40050.0,3.9736]
[1610211740893,2.834,40088.0,40051.0,0.00020768]
[1610211741094,2.834,40088.0,40069.0,0.13632608]
[1610211741293,2.834,40088.0,40061.0,0.08937]
[1610211742094,3.8936,40079.0,40061.0,0.08937]
[1610211742296,3.98276,40079.0,40046.0,0.11373]
[1610211743195,0.13632608,40047.0,40046.0,0.11373]
[1610211743994,0.13632608,40047.0,40041.0,0.13632608]
[1610211745198,0.2728,40077.0,40046.0,0.13632608]
[1610211745398,0.2728,40077.0,40046.0,4.11034608]
[1610211745597,2.8076,40090.0,40046.0,4.11034608]
[1610211747201,0.08787,40092.0,40072.0,0.13632608]
[1610211747401,0.12725873,40106.0,40072.0,0.20936608]
[1610211747801,0.11691,40106.0,40072.0,0.20936608]
[1610211748400,1.0,40105.0,40072.0,0.20936608]
[1610211749101,1.0,40105.0,40082.0,0.13632608]
[1610211750202,0.11691,40106.0,40082.0,0.13632608]
[1610211751202,0.13632608,40083.0,40082.0,0.13632608]
[1610211751402,0.13632608,40083.0,40072.0,0.07304]
[1610211752503,0.13632608,40083.0,40071.0,3.5809]
[1610211752705,0.13632608,40083.0,40046.0,0.11112]
[1610211752906,0.13632608,40083.0,40033.0,1.5]
[1610211753106,0.13632608,40083.0,40049.0,3.422]
[1610211753307,0.1556,40095.0,40068.0,0.13632608]
[1610211754306,1.5,40094.0,40066.0,0.09234]
[1610211754906,3.7676,40081.0,40066.0,0.09234]
[1610211755110,0.08125,40085.0,40066.0,0.09234]
[1610211755309,0.13632608,40067.0,40066.0,0.09234]
[1610211756912,0.13632608,40067.0,40050.0,3.6203]
[1610211757111,0.11092,40072.0,40051.0,0.13632608]
[1610211757511,0.11092,40072.0,40049.0,0.09253]
[1610211758114,0.11092,40072.0,40050.0,0.00020775]
[1610211759312,0.11092,40072.0,40054.0,0.13632608]
[1610211759814,0.11092,40072.0,40049.0,0.09253]
[1610211760013,0.11092,40072.0,40046.0,2.8391]
[1610211760213,0.11092,40072.0,40050.0,0.00021022]
[1610211760414,0.11092,40072.0,40048.0,0.11373]
[1610211760813,0.0003051,40071.0,40049.0,0.00021022]
[1610211761219,0.13632608,40050.0,40049.0,0.00021022]
[1610211762214,0.11092,40072.0,40049.0,0.47581022]
[1610211762416,0.00299624,40100.0,40049.0,0.00021022]
[1610211762614,0.00030509,40071.0,40055.0,3.7453]
[1610211762814,0.11461,40082.0,40055.0,3.7453]
[1610211763014,0.00030507,40081.0,40056.0,0.0002102]
[1610211763216,0.00030507,40081.0,40066.0,0.13632608]
[1610211763620,0.00030507,40081.0,40067.0,0.0002102]
[1610211765221,0.11461,40082.0,40072.0,0.13632608]
[1610211765824,0.11461,40082.0,40073.0,0.00021016]
[1610211766622,0.11461,40082.0,40066.0,0.5155]
[1610211766623,0.11461,40082.0,40067.0,0.00021016]
[1610211767223,0.11461,40082.0,40072.0,0.13632608]
[1610211767624,0.11461,40082.0,40073.0,0.00021016]
[1610211767825,0.2817,40088.0,40073.0,0.00021016]
[1610211768427,0.000305,40087.0,40073.0,0.00021016]
[1610211768926,0.082445,40087.0,40073.0,0.00021016]
[1610211769126,0.000305,40086.0,40073.0,0.00021016]
[1610211769326,0.13632608,40074.0,40073.0,0.00021016]
[1610211770726,0.13632608,40074.0,40067.0,0.00021016]
[1610211771228,0.13632608,40068.0,40067.0,0.00021016]
[1610211775229,0.13632608,40068.0,40067.0,0.14416155]
[1610211776731,0.13632608,40068.0,40067.0,0.00021016]
[1610211779635,0.13632608,40068.0,40067.0,0.00783554]
[1610211781336,0.13632608,40068.0,40067.0,0.14416162]
[1610211782540,0.13632608,40068.0,40067.0,0.00783554]
[1610211783539,0.13632608,40068.0,40067.0,0.00021016]
[1610211784140,0.13632608,40068.0,40060.0,0.00783586]
[1610211784339,0.13632608,40068.0,40067.0,0.00021003]
[1610211784738,0.13632608,40068.0,40061.0,0.00021003]
[1610211784941,0.13632608,40068.0,40067.0,0.00021003]
[1610211785140,0.13632608,40068.0,40062.0,0.00021003]
[1610211785340,0.13632608,40063.0,40062.0,0.00021003]
[1610211785540,0.13632608,40063.0,40053.0,3.1354]
[1610211785740,0.13632608,40063.0,40062.0,0.00021005]
[1610211785941,0.13632608,40063.0,40054.0,0.00783709]
[1610211786346,0.13632608,40063.0,40062.0,0.00021007]
[1610211786541,0.13632608,40063.0,40055.0,0.00021005]
[1610211786742,0.13632608,40063.0,40062.0,0.00021005]
[1610211787142,0.13632608,40063.0,40056.0,0.00021005]
[1610211787341,0.13632608,40063.0,40053.0,3.1354]
[1610211787342,0.13632608,40063.0,40062.0,0.13653611]
[1610211787540,0.13632608,40063.0,40062.0,0.13632608]
[1610211787941,0.13632608,40063.0,40062.0,0.14416233]
[1610211788341,0.13632608,40063.0,40062.0,0.13653611]
[1610211788541,0.13632608,40063.0,40062.0,0.00021003]
[1610211788842,0.13632608,40063.0,40054.0,0.00783651]
[1610211789242,0.13632608,40063.0,40062.0,0.00021005]
[1610211789443,0.13632608,40063.0,40059.0,0.13632608]
[1610211789644,0.13632608,40063.0,40060.0,0.00783645]
[1610211790443,0.13632608,40063.0,40061.0,0.00021005]
[1610211790744,0.13632608,40063.0,40060.0,0.0076264]
[1610211790745,0.13632608,40063.0,40060.0,0.00783645]
[1610211790943,0.13632608,40063.0,40062.0,0.00021005]
[1610211791344,0.13632608,40063.0,40061.0,0.00021005]
[1610211791547,0.13632608,40063.0,40060.0,0.00783645]
[1610211794447,0.51558374,40063.0,40060.0,0.00783645]
[1610211803659,0.51558374,40063.0,40058.0,0.00783633]
[1610211811367,0.51558374,40063.0,40062.0,0.13632608]
[1610211811768,0.51558374,40063.0,40062.0,0.14416206]
[1610211813974,0.51558374,40063.0,40062.0,0.63366206]
[1610211814975,0.37925766,40063.0,40062.0,0.63366206]
[1610211815176,0.37925766,40063.0,40062.0,0.65755004]
[1610211816576,0.11875766,40063.0,40062.0,0.65755004]
[1610211817577,0.13632608,40106.0,40062.0,0.65755004]
[1610211818080,0.13632608,40106.0,40068.0,2.57703119]
[1610211818278,0.13632608,40106.0,40068.0,2.66638119]
[1610211818479,0.13632608,40106.0,40069.0,0.03169606]
[1610211818879,3.7507,40103.0,40069.0,0.00783003]
[1610211819281,3.8608,40103.0,40070.0,0.00783051]
[1610211819483,0.00030486,40102.0,40080.0,0.13632608]
[1610211819882,0.00030486,40102.0,40087.0,3.5821]
[1610211820482,0.00030486,40102.0,40088.0,0.00783163]
[1610211820681,0.1101,40103.0,40088.0,0.00783163]
[1610211820883,0.1101,40103.0,40088.0,0.0002099]
[1610211821481,0.1101,40103.0,40092.0,0.13632608]
[1610211822084,0.1101,40103.0,40093.0,0.00020708]
[1610211823484,0.13632608,40094.0,40093.0,0.00020708]
[1610211823884,0.13632608,40094.0,40088.0,0.00020708]
[1610211824285,0.13632608,40094.0,40093.0,0.00020708]
[1610211824484,0.13632608,40094.0,40089.0,0.00020708]
[1610211824684,0.13632608,40094.0,40083.0,0.00020708]
[1610211824987,0.13632608,40094.0,40090.0,0.00020708]
[1610211825285,0.13632608,40094.0,40084.0,0.00020708]
[1610211825485,0.1101,40103.0,40078.0,0.08412]
[1610211825486,0.1101,40103.0,40086.0,0.13632608]
[1610211825685,3.2155,40098.0,40083.0,0.00020708]
[1610211825886,0.09229,40104.0,40087.0,0.00020708]
[1610211826087,3.1924,40092.0,40079.0,0.0002071]
[1610211826287,3.3102,40092.0,40052.0,2.9649]
[1610211826686,3.3102,40092.0,40080.0,0.00020713]
[1610211826887,3.3102,40092.0,40069.0,0.00020713]
[1610211827287,3.3102,40092.0,40081.0,0.00020713]
[1610211827490,0.13632608,40082.0,40076.0,0.13632608]
[1610211828089,0.13632608,40082.0,40077.0,0.00020714]
[1610211829190,0.13632608,40082.0,40066.0,0.00020714]
[1610211829390,0.13632608,40082.0,40078.0,0.00020714]
[1610211829790,4.1527,40079.0,40072.0,0.00020714]
[1610211829995,4.1527,40079.0,40065.0,0.11792]
[1610211830395,4.1527,40079.0,40066.0,0.00020715]
[1610211830595,0.13632608,40082.0,40066.0,0.00020715]
[1610211830793,0.1178,40092.0,40078.0,4.0058]
[1610211830997,0.31233315,40092.0,40079.0,0.00020715]
[1610211831192,0.31233315,40092.0,40091.0,3.3556]
[1610211831393,0.31233315,40092.0,40091.0,3.43048]
[1610211831594,0.31233315,40092.0,40091.0,3.56701314]
[1610211834796,0.31233315,40092.0,40091.0,3.57463019]
[1610211834997,0.31233315,40092.0,40091.0,3.57442313]
[1610211835598,0.1556,40141.0,40091.0,3.57442313]
[1610211835799,0.1556,40141.0,40091.0,5.07442313]
[1610211836000,0.1556,40141.0,40092.0,0.04501529]
[1610211836200,0.1556,40141.0,40092.0,0.00782214]
[1610211836598,0.1556,40158.0,40092.0,0.00782214]
[1610211836798,0.1556,40158.0,40128.0,3.6183]
[1610211837000,0.1556,40158.0,40128.0,3.73625]
[1610211837200,0.1556,40158.0,40129.0,0.00020685]
[1610211837599,0.13632608,40168.0,40157.0,0.13632608]
[1610211839600,0.13632608,40168.0,40167.0,0.13632608]
[1610211840198,0.13632608,40168.0,40151.0,3.1246]
[1610211841500,0.2849,40172.0,40162.0,0.5781]
[1610211843500,0.13632608,40163.0,40162.0,0.5781]
[1610211852705,0.13632608,40163.0,40153.0,0.13632608]
[1610211853505,0.13632608,40163.0,40146.0,3.12239]
[1610211853706,0.13632608,40154.0,40148.0,0.13632608]
[1610211856310,0.2849,40172.0,40148.0,0.13632608]
[1610211856509,0.2849,40172.0,40158.0,3.5951]
[1610211857614,0.13632608,40159.0,40158.0,3.73142608]
[1610211858117,0.13632608,40159.0,40158.0,0.13632608]
[1610211859317,0.13632608,40159.0,40158.0,0.70802608]
[1610211863920,0.2849,40172.0,40158.0,0.70802608]
[1610211864322,0.03074937,40171.0,40158.0,0.70802608]
[1610211865727,0.13632608,40162.0,40158.0,0.70802608]
[1610211866528,0.13632608,40162.0,40158.0,0.13632608]
[1610211866728,0.13632608,40162.0,40146.0,0.08839]
[1610211866928,3.4849,40154.0,40128.0,0.11795]
[1610211867129,3.4849,40154.0,40125.0,3.3105]
[1610211867530,0.1556,40153.0,40125.0,3.3105]
[1610211867733,0.13632608,40134.0,40133.0,0.13632608]
[1610211868930,0.13632608,40134.0,40125.0,3.3105]
[1610211869234,0.13632608,40134.0,40091.0,0.07488]
[1610211869431,0.13632608,40134.0,40072.0,1.5]
[1610211869632,0.13632608,40134.0,40131.0,0.13632608]
[1610211875339,0.13632608,40134.0,40123.0,0.09918]
[1610211875540,0.13632608,40134.0,40107.0,4.0883]
[1610211875739,4.1108,40137.0,40124.0,0.13632608]
[1610211877643,4.1108,40137.0,40131.0,0.13632608]
[1610211879147,4.1108,40137.0,40119.0,0.11581]
[1610211879751,4.1108,40137.0,40123.0,0.13632608]
[1610211881754,0.13632608,40132.0,40131.0,0.13632608]
[1610211883460,0.07607,40147.0,40131.0,0.13632608]
[1610211883659,0.4404,40153.0,40132.0,4.1777]
[1610211883858,0.00030462,40146.0,40144.0,0.13632608]
[1610211884062,0.00030457,40152.0,40144.0,0.13632608]
[1610211884460,0.4404,40153.0,40144.0,0.13632608]
[1610211885861,0.13632608,40146.0,40144.0,0.13632608]
[1610211888466,0.4404,40153.0,40144.0,0.13632608]
[1610211888666,0.4404,40153.0,40145.0,0.00020676]
[1610211888865,0.2848,40153.0,40145.0,0.00020676]
[1610211889768,0.2848,40153.0,40151.0,0.13632608]
[1610211891771,0.13632608,40152.0,40151.0,0.13632608]
[1610211892872,0.13632608,40152.0,40138.0,0.08336]
[1610211893273,0.13632608,40152.0,40139.0,0.00020674]
[1610211893872,0.2848,40153.0,40145.0,0.13632608]
[1610211894273,0.2848,40153.0,40146.0,0.00020674]
[1610211895775,0.13632608,40147.0,40146.0,0.00020674]
[1610211895975,3.29312608,40147.0,40146.0,0.00020674]
[1610211896175,3.29312608,40147.0,40139.0,0.00020677]
[1610211896374,3.38857608,40147.0,40146.0,0.00020677]
[1610211896774,3.38857608,40147.0,40140.0,0.00020677]
[1610211896975,3.38857608,40147.0,40146.0,0.00020679]
[1610211897375,3.38857608,40147.0,40141.0,0.00020679]
[1610211897575,3.38857608,40147.0,40131.0,0.00020679]
[1610211897774,3.25225,40147.0,40142.0,0.00020679]
[1610211897975,3.25225,40147.0,40131.0,0.00020679]
[1610211898376,0.09545,40147.0,40143.0,0.00020679]
[1610211898577,0.09545,40147.0,40132.0,0.00020679]
[1610211898776,0.09545,40147.0,40144.0,0.00020679]
[1610211899176,0.09545,40147.0,40133.0,0.00020679]
[1610211899379,0.09545,40147.0,40131.0,4.0269]
[1610211899581,0.09545,40147.0,40134.0,0.00020679]
[1610211899782,0.13632608,40135.0,40134.0,0.00020679]
[1610211899981,0.13632608,40135.0,40132.0,0.00020679]
[1610211900179,0.13632608,40135.0,40131.0,4.16322608]
[1610211900378,0.13632608,40135.0,40133.0,0.00020677]
[1610211900779,0.13632608,40135.0,40132.0,0.00020677]
[1610211900979,0.13632608,40135.0,40134.0,0.00020677]
[1610211901179,0.13632608,40135.0,40133.0,0.00020677]
[1610211901383,0.13632608,40135.0,40134.0,0.00020677]
[1610211901981,0.13632608,40135.0,40132.0,0.00020677]
[1610211902183,0.13632608,40135.0,40134.0,0.00020677]
[1610211902582,0.13632608,40135.0,40133.0,0.00020677]
[1610211902780,0.13632608,40135.0,40134.0,0.00020677]
[1610211903382,0.13632608,40135.0,40131.0,0.13632608]
[1610211903383,0.13632608,40135.0,40132.0,0.00020677]
[1610211903582,0.13632608,40135.0,40134.0,0.00020677]
[1610211903786,0.13632608,40140.0,40133.0,0.00020677]
[1610211903984,0.13632608,40140.0,40135.0,3.1488]
[1610211904584,0.09545,40147.0,40136.0,0.00020675]
[1610211904982,0.2848,40153.0,40136.0,0.00020675]
[1610211905183,0.2848,40153.0,40137.0,0.00020674]
[1610211905785,0.2848,40153.0,40143.0,0.13632608]
[1610211906186,0.2848,40153.0,40144.0,0.00020674]
[1610211907790,0.13632608,40145.0,40144.0,0.00020674]
[1610211908792,0.13632608,40145.0,40129.0,0.00020676]
[1610211909192,0.13632608,40145.0,40144.0,0.00020676]
[1610211909392,0.13632608,40145.0,40130.0,0.00020676]
[1610211909592,0.13632608,40145.0,40144.0,0.00020676]
[1610211909994,0.13632608,40145.0,40131.0,0.00020676]
[1610211910193,0.13632608,40145.0,40144.0,0.00020676]
[1610211910391,0.13632608,40145.0,40132.0,0.00020676]
[1610211910792,0.13632608,40145.0,40144.0,0.00020676]
[1610211910993,0.13632608,40145.0,40133.0,0.00020678]
[1610211911192,0.13663065,40145.0,40144.0,0.00020678]
[1610211911391,4.01192608,40145.0,40134.0,0.0002068]
[1610211911794,0.13632608,40135.0,40122.0,0.0002068]
[1610211911994,0.13632608,40135.0,40115.0,4.21462608]
[1610211912197,0.00030463,40134.0,40120.0,0.00020683]
[1610211912394,3.664,40124.0,40120.0,0.00020683]
[1610211912598,3.664,40124.0,40116.0,0.00020683]
[1610211912794,3.664,40124.0,40121.0,0.00020685]
[1610211912994,3.664,40124.0,40102.0,0.08489]
[1610211913397,1.6139,40128.0,40122.0,0.00020685]
[1610211913597,0.00030467,40123.0,40103.0,0.00782371]
[1610211913796,0.13632608,40104.0,40102.0,0.08489]
[1610211913996,4.32002608,40104.0,40078.0,3.2446]
[1610211914196,4.1479,40093.0,40077.0,0.13632608]
[1610211914397,4.1479,40093.0,40078.0,0.00782646]
[1610211914598,4.1479,40093.0,40078.0,0.08999]
[1610211914797,4.1479,40093.0,40079.0,0.0078278]
[1610211915199,4.1479,40093.0,40079.0,0.00020698]
[1610211915598,4.1479,40093.0,40080.0,0.00020698]
[1610211915798,0.13632608,40081.0,40080.0,0.00020698]
[1610211916199,0.13632608,40081.0,40079.0,0.000207]
[1610211916399,0.13632608,40081.0,40080.0,0.000207]
[1610211916998,0.13632608,40081.0,40078.0,0.08999]
[1610211917200,0.13632608,40081.0,40080.0,3.043807]
[1610211917399,0.10452,40099.0,40080.0,3.043807]
[1610211917600,1.0,40111.0,40080.0,3.0436]
[1610211917800,1.0,40111.0,40102.0,0.13632608]
[1610211918399,0.2917,40124.0,40102.0,0.13632608]
[1610211919000,0.2917,40124.0,40099.0,3.0882]
[1610211919400,0.2917,40124.0,40096.0,0.07885]
[1610211919600,3.5825,40118.0,40096.0,0.07885]
[1610211919800,0.13632608,40097.0,40096.0,0.07885]
[1610211921101,0.13632608,40097.0,40085.0,4.134]
[1610211921902,0.40544835,40093.0,40088.0,0.13632608]
[1610211922303,0.40544835,40093.0,40092.0,3.0265]
[1610211922703,0.40544835,40093.0,40089.0,0.08657]
[1610211923605,0.40544835,40093.0,40089.0,0.52417]
[1610211925907,0.13632608,40090.0,40089.0,0.52417]
[1610211936018,0.13632608,40090.0,40089.0,0.66049608]
[1610211937918,0.13632608,40090.0,40089.0,0.66070303]
[1610211938320,0.13632608,40090.0,40089.0,0.66049608]
[1610211938522,0.13632608,40090.0,40089.0,0.66070304]
[1610211938720,0.13632608,40090.0,40089.0,0.66049608]
[1610211939020,0.13632608,40090.0,40089.0,0.6683231]
[1610211939621,0.13632608,40090.0,40089.0,0.2307231]
[1610211939821,0.13632608,40090.0,40089.0,0.09439702]
[1610211940422,0.13632608,40090.0,40089.0,0.08677696]
[1610211940621,0.13632608,40090.0,40089.0,0.00020696]
[1610211941221,0.13632608,40090.0,40083.0,0.00782782]
[1610211941423,0.13632608,40090.0,40089.0,0.00020825]
[1610211941621,0.13632608,40090.0,40083.0,0.00782909]
[1610211942021,0.40544835,40093.0,40089.0,0.00020825]
[1610211942225,0.40544835,40093.0,40084.0,0.00020825]
[1610211942421,0.40544835,40093.0,40083.0,0.00782909]
[1610211942822,0.40544835,40093.0,40092.0,2.9509]
[1610211943037,0.40544835,40093.0,40092.0,2.95110823]
[1610211943624,0.40544835,40093.0,40092.0,2.95872693]
[1610211944023,0.40544835,40093.0,40092.0,3.09505301]
[1610211950229,3.0309,40139.0,40092.0,3.09505301]
[1610211950428,0.2953,40144.0,40092.0,0.16720863]
[1610211950629,0.2953,40144.0,40112.0,3.6135]
[1610211950828,0.2953,40144.0,40112.0,3.69862]
[1610211951230,0.2953,40144.0,40113.0,0.0078223]
[1610211952033,0.1556,40160.0,40143.0,0.13632608]
[1610211952433,0.2804,40159.0,40143.0,0.13632608]
[1610211953835,0.2804,40159.0,40139.0,3.3532]
[1610211954033,0.13632608,40140.0,40139.0,3.3532]
[1610211954232,0.13632608,40140.0,40137.0,0.24960608]
[1610211955234,0.13632608,40140.0,40137.0,0.11328]
[1610211955832,0.13632608,40140.0,40139.0,2.9094]
[1610211956033,0.13632608,40150.0,40139.0,2.9094]
[1610211958037,0.1556,40160.0,40145.0,0.13632608]
[1610211958235,0.1556,40160.0,40146.0,0.5449]
[1610211960038,0.13632608,40147.0,40137.0,0.11328]
[1610211960240,0.13632608,40147.0,40112.0,0.08512]
[1610211960440,0.13632608,40147.0,40129.0,2.9441]
[1610211960640,0.13632608,40147.0,40129.0,3.03167]
[1610211962144,0.13632608,40139.0,40133.0,0.13632608]
[1610211962744,0.1556,40160.0,40133.0,0.13632608]
[1610211962944,0.1556,40160.0,40140.0,3.6857]
[1610211964046,0.1556,40160.0,40150.0,0.13632608]
[1610211965445,0.1556,40160.0,40138.0,0.09944]
[1610211965647,3.9843,40159.0,40138.0,0.09944]
[1610211966146,0.13632608,40141.0,40138.0,0.09944]
[1610211969550,0.13632608,40141.0,40137.0,0.13632608]
[1610211971853,0.13632608,40141.0,40138.0,0.00020796]
[1610211972155,0.13632608,40141.0,40137.0,0.13632608]
[1610211972655,0.13632608,40141.0,40138.0,0.00020796]
[1610211977657,0.1556,40160.0,40138.0,0.00020796]
[1610211978058,0.13632608,40145.0,40143.0,0.13632608]
[1610211978459,0.13632608,40145.0,40144.0,0.00020796]
[1610211979758,0.13632608,40145.0,40138.0,0.00020796]
[1610211979957,0.13632608,40145.0,40144.0,0.00020796]
[1610211980359,0.1366306,40145.0,40142.0,0.13632608]
[1610211980559,0.13632608,40145.0,40144.0,0.00020796]
[1610211980760,0.13632608,40145.0,40143.0,0.00020796]
[1610211981162,0.13632608,40145.0,40144.0,0.00020796]
[1610211981561,0.13632608,40145.0,40143.0,0.00020796]
[1610211981764,0.13632608,40145.0,40144.0,3.5818]
[1610211981962,0.13632608,40145.0,40144.0,3.58200796]
[1610211992174,0.13632608,40150.0,40144.0,3.58200796]
[1610211992372,0.13632608,40150.0,40145.0,0.00020793]
[1610211994173,0.13632608,40150.0,40149.0,0.13632608]
[1610211994572,0.13632608,40150.0,40149.0,0.13653401]
[1610211996776,0.13632608,40150.0,40149.0,0.68943401]
[1610212000178,0.13632608,40155.0,40149.0,0.68943401]
[1610212000377,0.1556,40160.0,40149.0,0.68943401]
[1610212000577,0.1556,40160.0,40150.0,0.00020791]
[1610212001578,0.11383,40169.0,40150.0,0.00020791]
[1610212001778,0.15876596,40177.0,40150.0,0.00020791]
[1610212001978,0.1556,40177.0,40150.0,0.00781864]
[1610212002177,0.00030439,40176.0,40170.0,3.6881]
[1610212002779,0.00030439,40176.0,40171.0,0.0002106]
[1610212002979,0.08417,40183.0,40175.0,3.9947]
[1610212003579,0.47926879,40196.0,40176.0,0.00021055]
[1610212003779,0.02612219,40198.0,40176.0,0.00021055]
[1610212004181,0.00030428,40195.0,40176.0,0.00021055]
[1610212004379,0.00030428,40197.0,40176.0,0.00021055]
[1610212004580,0.01086532,40202.0,40194.0,2.8708]
[1610212004980,0.18170211,40211.0,40194.0,2.8708]
[1610212005379,0.18170211,40211.0,40191.0,0.09996]
[1610212005380,0.1556,40211.0,40191.0,0.09996]
[1610212005979,0.1556,40211.0,40210.0,3.675]
[1610212006181,0.13632608,40213.0,40210.0,3.81132608]
[1610212007182,0.13632608,40213.0,40210.0,0.13632608]
[1610212007382,0.09804,40223.0,40212.0,3.2175]
[1610212008186,0.23436608,40223.0,40221.0,0.13632608]
[1610212008385,0.1556,40224.0,40221.0,0.13632608]
[1610212008585,0.00315242,40230.0,40222.0,3.5095]
[1610212008785,0.00315209,40236.0,40222.0,3.5095]
[1610212009184,0.01080706,40237.0,40222.0,3.5095]
[1610212009584,0.1556,40239.0,40222.0,3.5095]
[1610212009784,0.1556,40239.0,40221.0,0.22513608]
[1610212009984,0.1556,40239.0,40221.0,3.52323608]
[1610212010184,0.13632608,40231.0,40221.0,3.38691]
[1610212012185,0.13632608,40231.0,40230.0,0.13632608]
[1610212012588,0.13632608,40231.0,40230.0,2.92632608]
[1610212012784,0.1556,40239.0,40230.0,2.79]
[1610212014285,0.29192608,40239.0,40238.0,0.13632608]
[1610212014686,0.13632608,40239.0,40238.0,3.80382608]
[1610212015086,0.13632608,40239.0,40238.0,0.13632608]
[1610212015490,0.13632608,40239.0,40223.0,2.9125]
[1610212015688,0.13632608,40239.0,40221.0,0.08881]
[1610212015888,3.1232,40231.0,40212.0,0.11188]
[1610212016090,0.11074,40233.0,40201.0,0.08256]
[1610212016291,0.13632608,40202.0,40201.0,0.13632608]
[1610212017489,0.13632608,40202.0,40185.0,3.9787]
[1610212017891,0.13632608,40202.0,40136.0,2.46204115]
[1610212018092,0.1556,40201.0,40162.0,3.2973]
[1610212018290,0.1556,40201.0,40188.0,0.13632608]
[1610212018489,0.1556,40201.0,40189.0,3.399]
[1610212019289,0.1556,40214.0,40189.0,3.399]
[1610212019490,0.2768,40215.0,40189.0,3.399]
[1610212019890,0.1556,40214.0,40189.0,3.399]
[1610212020291,0.13632608,40204.0,40200.0,0.13632608]
[1610212021090,0.13632608,40204.0,40185.0,3.13819]
[1610212021891,0.1556,40214.0,40185.0,0.09759]
[1610212022092,0.11971,40223.0,40202.0,3.8212]
[1610212022291,0.11971,40223.0,40222.0,0.13632608]
[1610212022492,0.11607902,40244.0,40222.0,0.13632608]
[1610212022891,0.1556,40249.0,40232.0,2.9792]
[1610212023091,0.00311789,40251.0,40232.0,2.9792]
[1610212023492,0.00311685,40264.0,40232.0,2.9792]
[1610212023893,0.28559055,40266.0,40232.0,2.9792]
[1610212023894,0.2706,40266.0,40232.0,2.9792]
[1610212024293,0.13632608,40256.0,40249.0,0.13632608]
[1610212026395,0.53632608,40250.0,40249.0,0.13632608]
[1610212029606,0.6686392,40250.0,40249.0,0.13632608]
[1610212030804,0.6686392,40250.0,40249.0,3.18012608]
[1610212032103,0.6686392,40250.0,40249.0,0.13632608]
[1610212033610,0.6686392,40250.0,40249.0,0.63512608]
[1610212034008,0.53231312,40250.0,40249.0,0.63512608]
[1610212039515,0.06611312,40250.0,40249.0,0.63512608]
[1610212039715,0.2706,40266.0,40249.0,0.63512608]
[1610212040316,0.2706,40266.0,40249.0,0.13632608]
[1610212040515,0.2706,40266.0,40265.0,0.13632608]
[1610212040717,0.2706,40266.0,40265.0,0.21658608]
[1610212043318,0.06069407,40326.0,40265.0,0.21658608]
[1610212043517,0.1556,40325.0,40290.0,2.9697]
[1610212044117,0.03064972,40324.0,40290.0,2.9697]
[1610212044418,0.03064972,40324.0,40314.0,0.13632608]
[1610212044818,0.03064397,40325.0,40314.0,0.13632608]
[1610212045218,0.03064172,40323.0,40314.0,0.13632608]
[1610212045419,0.03064221,40324.0,40300.0,0.09773]
[1610212045619,0.18624126,40325.0,40300.0,0.09773]
[1610212046020,0.03064173,40323.0,40300.0,0.09773]